[Event "Paul Keres Memorial-U20 Girls 2020"]
[Site "Parnu"]
[Date "2020.07.30"]
[Round "5.5"]
[White "Nilssen, Ellen Fredericia"]
[Black "Limanovska, Elizabete"]
[Result "1-0"]
[ECO "E12"]
[WhiteElo "2071"]
[BlackElo "2179"]
[Annotator "ChessBase"]
[PlyCount "107"]
[EventDate "2020.07.27"]
[EventType "tourn"]
[EventCountry "EST"]
[SourceTitle "playchess.com"]
[Source "ChessBase"]
[SourceQuality "1"]
[TimeControl "5400+30"]

1. d4 {[%emt 0:00:00]} Nf6 {[%emt 0:00:00]} 2. c4 {[%emt 0:00:00]} e6 {[%emt 0:00:00]} 3. Nf3 {[%emt 0:00:00]} b6 {[%emt 0:00:00]} 4. a3 {[%emt 0:00:00]} Bb7 {[%emt 0:00:26]} 5. Nc3 {[%emt 0:00:04]} d5 {[%emt 0:00:58]} 6. cxd5 {[%emt 0:00:10]} exd5 {[%emt 0:02:09]} 7. Qa4+ {[%emt 0:00:07]} c6 {[%emt 0:04:10]} 8. Bg5 {[%emt 0:00:22]} Be7 {[%emt 0:01:09]} 9. e3 {[%emt 0:00:08]} h6 {[%emt 0:04:50]} 10. Bh4 {[%emt 0:03:32]} O-O {[%emt 0:00:16]} 11. Bd3 {[%emt 0:00:12]} Ne4 {[%emt 0:09:57]} 12. Bxe4 {[%emt 0:04:28]} Bxh4 {[%emt 0:04:04]} 13. Nxh4 {[%emt 0:01:14]} dxe4 {[%emt 0:06:42]} 14. Nf5 {[%emt 0:00:22]} Ba6 {[%emt 0:06:03]} 15. Nxe4 {[%emt 0:05:20]} Re8 {[%emt 0:01:07]} 16. Nc3 {[%emt 0:05:56]} Bd3 {[%emt 0:06:16]} 17. Ng3 {[%emt 0:00:49]} b5 {[%emt 0:06:46]} 18. Qd1 {[%emt 0:08:40]} Qxd4 {[%emt 0:02:01]} 19. Qd2 {[%emt 0:00:25]} Qd7 {[%emt 0:00:08]} 20. Rd1 {[%emt 0:04:41]} Bf5 {[%emt 0:00:07]} 21. Qxd7 {[%emt 0:01:38]} Bxd7 {[%emt 0:00:06]} 22. Nge4 {[%emt 0:01:56]} a5 {[%emt 0:04:03]} 23. Nc5 {[%emt 0:02:26]} Bf5 {[%emt 0:02:42]} 24. Rd6 {[%emt 0:06:51]} b4 {[%emt 0:09:00]} 25. Ne2 {[%emt 0:01:25]} bxa3 {[%emt 0:02:58]} 26. bxa3 {[%emt 0:00:10]} Na6 {[%emt 0:00:36]} 27. Nxa6 {[%emt 0:06:06]} Rxa6 {[%emt 0:00:05]} 28. Nd4 {[%emt 0:00:13]} Be4 {[%emt 0:03:16]} 29. O-O {[%emt 0:03:31]} Rb6 {[%emt 0:00:11]} 30. Rc1 {[%emt 0:04:09]} Reb8 {[%emt 0:02:43]} 31. f3 {[%emt 0:01:34]} Rb1 {[%emt 0:00:58]} 32. Rxb1 {[%emt 0:00:06]} Rxb1+ {[%emt 0:00:04]} 33. Kf2 {[%emt 0:00:06]} Rb2+ {[%emt 0:01:06]} 34. Kg3 {[%emt 0:00:08]} Bg6 {[%emt 0:01:23]} 35. Rxc6 {[%emt 0:04:28]} Ra2 {[%emt 0:00:10]} 36. Rc3 {[%emt 0:02:07]} a4 {[%emt 0:00:24]} 37. Nc6 {[%emt 0:00:55]} Kh7 {[%emt 0:01:28]} 38. e4 {[%emt 0:04:01]} f6 {[%emt 0:00:58]} 39. Nb4 {[%emt 0:03:58]} Ra1 {[%emt 0:01:49]} 40. Nd5 {[%emt 0:05:39]} Bf7 {[%emt 0:01:44]} 41. Rd3 {[%emt 0:00:38]} Be6 {[%emt 0:02:20]} 42. h4 {[%emt 0:01:35]} Bf7 {[%emt 0:03:08]} 43. Kf4 {[%emt 0:00:18]} h5 {[%emt 0:01:26]} 44. Ke3 {[%emt 0:01:46]} Ra2 {[%emt 0:01:25]} 45. g3 {[%emt 0:00:11]} Be8 {[%emt 0:03:26]} 46. Kd4 {[%emt 0:01:50]} Rg2 {[%emt 0:02:26]} 47. f4 {[%emt 0:00:18]} Bb5 {[%emt 0:00:41]} 48. Re3 {[%emt 0:00:59]} Rc2 {[%emt 0:01:57]} 49. Nc3 {[%emt 0:00:43]} Rd2+ {[%emt 0:01:42]} 50. Kc5 {[%emt 0:00:07]} Rd3 {[%emt 0:00:03]} 51. Rxd3 {[%emt 0:00:19]} Bxd3 {[%emt 0:00:04]} 52. e5 {[%emt 0:00:54]} fxe5 {[%emt 0:00:44]} 53. fxe5 {[%emt 0:00:06]} Bc2 {[%emt 0:00:46]} 54. Kd6 {[%emt 0:01:58]} 1-0

[Event "Paul Keres Memorial-U20 Girls 2020"]
[Site "Parnu"]
[Date "2020.07.30"]
[Round "6.1"]
[White "Olde, Margareth"]
[Black "Limanovska, Elizabete"]
[Result "1-0"]
[ECO "E16"]
[WhiteElo "2201"]
[BlackElo "2179"]
[Annotator "RC"]
[PlyCount "109"]
[EventDate "2020.07.27"]
[EventType "tourn"]
[EventCountry "EST"]
[SourceTitle "playchess.com"]
[Source "ChessBase"]
[SourceQuality "1"]
[TimeControl "5400+30"]

1. d4 {[%emt 0:00:00]} Nf6 {[%emt 0:00:00]} 2. c4 {[%emt 0:00:00]} e6 {[%emt 0:00:00]} 3. Nf3 {[%emt 0:00:00]} b6 {[%emt 0:00:00]} 4. g3 {[%emt 0:00:00]} Bb7 {[%emt 0:00:00]} 5. Bg2 {[%emt 0:00:00]} Bb4+ {[%emt 0:00:19]} 6. Bd2 {[%emt 0:00:00]} a5 {[%emt 0:00:38]} 7. Nc3 {[%emt 0:02:27]} Bxc3 {[%emt 0:11:02]} 8. Bxc3 {[%emt 0:00:16]} Ne4 {[%emt 0:02:50]} 9. Rc1 {[%emt 0:01:25]} d5 {[%emt 0:04:33]} 10. cxd5 {[%emt 0:08:10]} exd5 {[%emt 0:00:37]} 11. O-O {[%emt 0:00:36]} O-O {[%emt 0:01:03]} 12. b3 {[%emt 0:06:17]} Nxc3 {[%emt 0:01:35]} 13. Rxc3 {[%emt 0:01:58]} Re8 {[%emt 0:00:45]} 14. e3 {[%emt 0:01:37]} Nd7 {[%emt 0:05:12]} 15. Qc2 {[%emt 0:02:38]} c6 {[%emt 0:00:32]} 16. Rc1 {[%emt 0:05:02]} Qe7 {[%emt 0:07:11]} 17. Qf5 {[%emt 0:06:01]} f6 {[%emt 0:08:28]} 18. Nh4 {[%emt 0:05:46]} g6 {[%emt 0:14:59]} 19. Qg4 {[%emt 0:05:24]} Kh8 {[%emt 0:03:13]} 20. Bh3 {[%emt 0:08:02]} Nf8 {[%emt 0:02:35]} 21. Qf3 {[%emt 0:08:34]} Ne6 {[%emt 0:03:18]} 22. Bg2 {[%emt 0:09:31]} a4 {[%emt 0:09:14]} 23. Qd1 {[%emt 0:02:04]} axb3 {[%emt 0:02:42]} 24. Qxb3 {[%emt 0:02:38]} b5 {[%emt 0:02:32]} 25. Nf3 {[%emt 0:01:07]} Ra4 {[%emt 0:02:58]} 26. Nd2 {[%emt 0:02:00]} Rea8 {[%emt 0:00:43]} 27. R3c2 {[%emt 0:01:09]} Qd8 {[%emt 0:02:22]} 28. Rxc6 {[%emt 0:07:34]} Bxc6 {[%emt 0:00:35]} 29. Rxc6 {[%emt 0:00:04]} Nc7 {[%emt 0:01:21]} 30. Qc3 {[%emt 0:00:35]} R8a7 {[%emt 0:06:00]} 31. Qc5 {[%emt 0:00:28]} Rxa2 {[%emt 0:00:45]} 32. Nb3 {[%emt 0:00:21]} Kg7 {[%emt 0:01:26]} 33. Rd6 {[%emt 0:01:28]} Qe7 {[%emt 0:01:33]} 34. Bxd5 {[%emt 0:05:25]} Na6 {[%emt 0:01:07]} 35. Qb6 {[%emt 0:00:52]} Nb4 {[%emt 0:00:42]} 36. Nc5 {[%emt 0:03:06]} Ra1+ {[%emt 0:01:46]} 37. Kg2 {[%emt 0:00:06]} Nxd5 {[%emt 0:01:55]} 38. Rxd5 {[%emt 0:00:07]} Rb1 {[%emt 0:00:44]} 39. Rd8 {[%emt 0:03:38]} b4 {[%emt 0:01:01]} 40. d5 {[%emt 0:00:12]} b3 {[%emt 0:00:39]} 41. d6 {[%emt 0:00:17]} Qf7 {[%emt 0:00:01]} 42. d7 {[%emt 0:01:22]} b2 {[%emt 0:01:12]} 43. Rg8+ {[%emt 0:02:23]} Qxg8 {[%emt 0:00:43]} 44. d8=Q {[%emt 0:00:29]} Rg1+ {[%emt 0:00:32]} 45. Kxg1 {[%emt 0:00:14]} Ra1+ {[%emt 0:00:02]} 46. Kg2 {[%emt 0:00:10]} Qxd8 {[%emt 0:01:02]} 47. Ne6+ {[%emt 0:00:36]} Kh6 {[%emt 0:00:10]} 48. Qxd8 {[%emt 0:00:23]} b1=Q {[%emt 0:00:02]} 49. Qf8+ {[%emt 0:00:18]} Kh5 {[%emt 0:00:03]} 50. Ng7+ {[%emt 0:00:46]} Kh6 {[%emt 0:00:46]} 51. Ne8+ {[%emt 0:00:50]} Kh5 {[%emt 0:00:19]} 52. Nxf6+ {[%emt 0:00:07]} Kg5 {[%emt 0:00:06]} 53. Nxh7+ {[%emt 0:00:08]} Kh5 {[%emt 0:00:09]} 54. g4+ {[%emt 0:01:11]} Kxg4 {[%emt 0:00:07]} 55. Qf4+ {[%emt 0:00:15]} 1-0

[Event "Paul Keres Memorial-U20 Girls 2020"]
[Site "Parnu"]
[Date "2020.07.30"]
[Round "6.2"]
[White "Muetsch, Annmarie"]
[Black "Nilssen, Ellen Fredericia"]
[Result "1-0"]
[ECO "C09"]
[WhiteElo "2219"]
[BlackElo "2071"]
[Annotator "ChessBase"]
[PlyCount "87"]
[EventDate "2020.07.27"]
[EventType "tourn"]
[EventCountry "EST"]
[SourceTitle "playchess.com"]
[Source "ChessBase"]
[SourceQuality "1"]
[TimeControl "5400+30"]

1. e4 {[%emt 0:01:33]} e6 {[%emt 0:00:02]} 2. d4 {[%emt 0:00:00]} d5 {[%emt 0:00:10]} 3. Nd2 {[%emt 0:00:00]} c5 {[%emt 0:00:07]} 4. exd5 {[%emt 0:00:00]} exd5 {[%emt 0:00:18]} 5. Ngf3 {[%emt 0:00:59]} Nc6 {[%emt 0:00:10]} 6. Bb5 {[%emt 0:00:16]} Qe7+ {[%emt 0:00:06]} 7. Be2 {[%emt 0:00:34]} Qc7 {[%emt 0:00:22]} 8. O-O {[%emt 0:00:52]} Nf6 {[%emt 0:00:16]} 9. Re1 {[%emt 0:01:15]} cxd4 {[%emt 0:00:39]} 10. Nb3 {[%emt 0:02:44]} Be7 {[%emt 0:00:10]} 11. Nbxd4 {[%emt 0:01:19]} O-O {[%emt 0:00:31]} 12. h3 {[%emt 0:08:20]} Be6 {[%emt 0:06:38]} 13. Bd3 {[%emt 0:07:27]} Nxd4 {[%emt 0:07:55]} 14. Nxd4 {[%emt 0:00:08]} Bc5 {[%emt 0:00:07]} 15. c3 {[%emt 0:12:37]} Bxd4 {[%emt 0:23:16]} 16. cxd4 {[%emt 0:00:06]} Rfe8 {[%emt 0:00:11]} 17. Bg5 {[%emt 0:05:04]} Nd7 {[%emt 0:00:22]} 18. h4 {[%emt 0:05:44]} h6 {[%emt 0:03:25]} 19. Bd2 {[%emt 0:05:32]} Qd8 {[%emt 0:00:39]} 20. Qh5 {[%emt 0:10:07]} Qf6 {[%emt 0:09:09]} 21. Re3 {[%emt 0:00:35]} Qxd4 {[%emt 0:05:12]} 22. Rg3 {[%emt 0:03:16]} Nf6 {[%emt 0:03:32]} 23. Qxh6 {[%emt 0:08:49]} Bg4 {[%emt 0:05:16]} 24. Qg5 {[%emt 0:03:21]} Qxb2 {[%emt 0:00:21]} 25. Rb1 {[%emt 0:02:10]} Qd4 {[%emt 0:06:55]} 26. Rb4 {[%emt 0:00:36]} Qa1+ {[%emt 0:00:07]} 27. Kh2 {[%emt 0:01:02]} Re5 {[%emt 0:02:18]} 28. Qf4 {[%emt 0:01:12]} Rae8 {[%emt 0:07:41]} 29. Rxg4 {[%emt 0:04:24]} Nxg4+ {[%emt 0:00:07]} 30. Qxg4 {[%emt 0:00:09]} R5e7 {[%emt 0:04:24]} 31. Rd4 {[%emt 0:00:30]} Qxa2 {[%emt 0:01:17]} 32. Qh5 {[%emt 0:05:47]} Re4 {[%emt 0:03:53]} 33. Bxe4 {[%emt 0:01:23]} Rxe4 {[%emt 0:01:16]} 34. Be3 {[%emt 0:01:40]} b5 {[%emt 0:03:32]} 35. Rxe4 {[%emt 0:01:27]} dxe4 {[%emt 0:00:01]} 36. Qxb5 {[%emt 0:00:16]} a5 {[%emt 0:03:00]} 37. Qe8+ {[%emt 0:00:10]} Kh7 {[%emt 0:00:05]} 38. Qxe4+ {[%emt 0:00:05]} Kg8 {[%emt 0:00:05]} 39. Qg4 {[%emt 0:01:52]} Qd5 {[%emt 0:01:17]} 40. g3 {[%emt 0:02:23]} Qc6 {[%emt 0:01:21]} 41. Bd4 {[%emt 0:00:37]} f6 {[%emt 0:00:05]} 42. h5 {[%emt 0:00:44]} a4 {[%emt 0:03:27]} 43. h6 {[%emt 0:00:21]} g5 {[%emt 0:00:05]} 44. Qf5 {[%emt 0:00:10]} 1-0

[Event "Paul Keres Memorial-U20 Girls 2020"]
[Site "Parnu"]
[Date "2020.07.30"]
[Round "6.3"]
[White "Kiolbasa, Oliwia"]
[Black "Norlamo, Sarabella"]
[Result "1-0"]
[ECO "C96"]
[WhiteElo "2160"]
[BlackElo "2023"]
[Annotator "ChessBase"]
[PlyCount "105"]
[EventDate "2020.07.27"]
[EventType "tourn"]
[EventCountry "EST"]
[SourceTitle "playchess.com"]
[Source "ChessBase"]
[SourceQuality "1"]
[TimeControl "5400+30"]

1. e4 {[%emt 0:00:43]} e5 {[%emt 0:00:00]} 2. Nf3 {[%emt 0:00:09]} Nc6 {[%emt 0:00:16]} 3. Bb5 {[%emt 0:00:12]} a6 {[%emt 0:00:07]} 4. Ba4 {[%emt 0:00:06]} Nf6 {[%emt 0:00:06]} 5. O-O {[%emt 0:00:14]} b5 {[%emt 0:00:05]} 6. Bb3 {[%emt 0:00:11]} Be7 {[%emt 0:00:06]} 7. Re1 {[%emt 0:00:31]} O-O {[%emt 0:00:08]} 8. h3 {[%emt 0:01:08]} d6 {[%emt 0:00:08]} 9. c3 {[%emt 0:00:27]} Na5 {[%emt 0:00:08]} 10. Bc2 {[%emt 0:00:08]} c5 {[%emt 0:00:07]} 11. d4 {[%emt 0:00:10]} Nd7 {[%emt 0:00:50]} 12. d5 {[%emt 0:00:33]} Nb6 {[%emt 0:00:21]} 13. b3 {[%emt 0:00:34]} f5 {[%emt 0:12:42]} 14. exf5 {[%emt 0:00:22]} Bxf5 {[%emt 0:00:03]} 15. Bxf5 {[%emt 0:01:35]} Rxf5 {[%emt 0:00:02]} 16. Qd3 {[%emt 0:00:17]} Rf7 {[%emt 0:09:06]} 17. Be3 {[%emt 0:03:08]} c4 {[%emt 0:08:14]} 18. Qd1 {[%emt 0:15:55]} Rc8 {[%emt 0:12:36]} 19. b4 {[%emt 0:08:07]} Nb7 {[%emt 0:00:10]} 20. Bxb6 {[%emt 0:02:09]} Qxb6 {[%emt 0:00:04]} 21. Nbd2 {[%emt 0:00:40]} Rff8 {[%emt 0:13:55]} 22. Ne4 {[%emt 0:01:46]} Nd8 {[%emt 0:06:43]} 23. a4 {[%emt 0:08:11]} Nf7 {[%emt 0:00:42]} 24. Re2 {[%emt 0:02:24]} Qb7 {[%emt 0:03:11]} 25. Rea2 {[%emt 0:03:04]} Ra8 {[%emt 0:00:36]} 26. Ne1 {[%emt 0:05:08]} Ng5 {[%emt 0:01:36]} 27. Nxg5 {[%emt 0:02:45]} Bxg5 {[%emt 0:00:02]} 28. Qg4 {[%emt 0:00:29]} Bf6 {[%emt 0:16:11]} 29. Qe6+ {[%emt 0:13:55]} Kh8 {[%emt 0:00:02]} 30. axb5 {[%emt 0:01:07]} axb5 {[%emt 0:00:24]} 31. Rxa8 {[%emt 0:00:56]} Rxa8 {[%emt 0:00:02]} 32. Rxa8+ {[%emt 0:00:49]} Qxa8 {[%emt 0:00:01]} 33. Qxd6 {[%emt 0:00:20]} h6 {[%emt 0:03:17]} 34. Nc2 {[%emt 0:01:26]} Qa4 {[%emt 0:01:26]} 35. Ne3 {[%emt 0:02:13]} Qa1+ {[%emt 0:03:26]} 36. Kh2 {[%emt 0:02:47]} Qxc3 {[%emt 0:00:02]} 37. Qb8+ {[%emt 0:00:40]} Kh7 {[%emt 0:00:09]} 38. Qxb5 {[%emt 0:00:06]} Be7 {[%emt 0:03:30]} 39. Qxc4 {[%emt 0:03:21]} Qxb4 {[%emt 0:03:49]} 40. Qxb4 {[%emt 0:03:21]} Bxb4 {[%emt 0:00:01]} 41. Kg3 {[%emt 0:00:12]} Kg6 {[%emt 0:00:37]} 42. Kf3 {[%emt 0:01:45]} Kf6 {[%emt 0:01:15]} 43. Ke4 {[%emt 0:01:56]} h5 {[%emt 0:01:22]} 44. Nc4 {[%emt 0:03:38]} Bc3 {[%emt 0:00:32]} 45. Nd6 {[%emt 0:00:11]} g6 {[%emt 0:01:08]} 46. Nb5 {[%emt 0:02:46]} Bb4 {[%emt 0:01:35]} 47. Nc7 {[%emt 0:00:26]} Bc3 {[%emt 0:00:57]} 48. d6 {[%emt 0:01:39]} Bb2 {[%emt 0:01:31]} 49. Kd5 {[%emt 0:01:42]} Bd4 {[%emt 0:00:26]} 50. f3 {[%emt 0:01:08]} Bc3 {[%emt 0:00:25]} 51. Ne6 {[%emt 0:00:31]} Bb2 {[%emt 0:00:44]} 52. d7 {[%emt 0:00:14]} Ke7 {[%emt 0:00:01]} 53. d8=Q+ {[%emt 0:00:13]} 1-0

[Event "Paul Keres Memorial-U20 Girls 2020"]
[Site "Parnu"]
[Date "2020.07.30"]
[Round "6.5"]
[White "Narva, Mai"]
[Black "Olde, Grete"]
[Result "0-1"]
[ECO "C96"]
[WhiteElo "2333"]
[BlackElo "1968"]
[Annotator "RC"]
[PlyCount "100"]
[EventDate "2020.07.27"]
[EventType "tourn"]
[EventCountry "EST"]
[SourceTitle "playchess.com"]
[Source "ChessBase"]
[SourceQuality "1"]
[TimeControl "5400+30"]

1. e4 {[%emt 0:00:34]} e5 {[%emt 0:00:00]} 2. Nf3 {[%emt 0:00:07]} Nc6 {[%emt 0:00:00]} 3. Bb5 {[%emt 0:00:07]} a6 {[%emt 0:00:00]} 4. Ba4 {[%emt 0:00:06]} Nf6 {[%emt 0:00:00]} 5. O-O {[%emt 0:00:08]} Be7 {[%emt 0:00:00]} 6. Re1 {[%emt 0:00:07]} b5 {[%emt 0:00:08]} 7. Bb3 {[%emt 0:00:05]} d6 {[%emt 0:00:07]} 8. c3 {[%emt 0:00:08]} O-O {[%emt 0:00:07]} 9. h3 {[%emt 0:00:07]} Na5 {[%emt 0:00:17]} 10. Bc2 {[%emt 0:00:08]} c5 {[%emt 0:00:08]} 11. d4 {[%emt 0:00:07]} Nd7 {[%emt 0:00:11]} 12. Nbd2 {[%emt 0:00:18]} exd4 {[%emt 0:00:28]} 13. cxd4 {[%emt 0:00:07]} Nc6 {[%emt 0:00:09]} 14. d5 {[%emt 0:00:16]} Nce5 {[%emt 0:00:09]} 15. a4 {[%emt 0:00:13]} Bb7 {[%emt 0:04:54]} 16. Nxe5 {[%emt 0:00:41]} Nxe5 {[%emt 0:00:22]} 17. f4 {[%emt 0:00:18]} Ng6 {[%emt 0:00:45]} 18. Nf3 {[%emt 0:00:23]} Re8 {[%emt 0:02:55]} 19. Kh2 {[%emt 0:11:31]} Bf6 {[%emt 0:04:33]} 20. Ra2 {[%emt 0:04:28]} b4 {[%emt 0:07:05]} 21. Bd3 {[%emt 0:24:14]} Qb6 {[%emt 0:07:49]} 22. b3 {[%emt 0:08:38]} Rac8 {[%emt 0:06:39]} 23. Rae2 {[%emt 0:06:41]} Qc7 {[%emt 0:06:30]} 24. e5 {[%emt 0:19:50]} Be7 {[%emt 0:15:11]} 25. Bf5 {[%emt 0:05:57]} Rcd8 {[%emt 0:05:39]} 26. e6 {[%emt 0:01:53]} Bc8 {[%emt 0:04:56]} 27. Qd3 {[%emt 0:13:00]} Bf6 {[%emt 0:08:32]} 28. h4 {[%emt 0:01:11]} Nf8 {[%emt 0:03:49]} 29. exf7+ {[%emt 0:02:31]} Qxf7 {[%emt 0:01:30]} 30. Bxc8 {[%emt 0:00:27]} Rxc8 {[%emt 0:00:10]} 31. Rxe8 {[%emt 0:00:32]} Rxe8 {[%emt 0:00:05]} 32. Rxe8 {[%emt 0:00:12]} Qxe8 {[%emt 0:00:06]} 33. Qxa6 {[%emt 0:00:13]} Qe7 {[%emt 0:02:44]} 34. h5 {[%emt 0:01:10]} Qf7 {[%emt 0:02:17]} 35. Qxd6 {[%emt 0:00:27]} Qxh5+ {[%emt 0:00:09]} 36. Kg1 {[%emt 0:00:18]} Bd4+ {[%emt 0:01:59]} 37. Nxd4 {[%emt 0:00:34]} Qd1+ {[%emt 0:01:04]} 38. Kh2 {[%emt 0:00:34]} cxd4 {[%emt 0:03:17]} 39. Qc7 {[%emt 0:00:36]} d3 {[%emt 0:02:25]} 40. Bb2 {[%emt 0:00:29]} Qh5+ {[%emt 0:00:39]} 41. Kg3 {[%emt 0:00:29]} Qg6+ {[%emt 0:01:45]} 42. Kf2 {[%emt 0:00:21]} d2 {[%emt 0:00:43]} 43. Ke2 {[%emt 0:00:22]} Qd3+ {[%emt 0:00:17]} 44. Kxd3 {[%emt 0:00:09]} d1=Q+ {[%emt 0:00:07]} 45. Ke4 {[%emt 0:01:00]} Qe2+ {[%emt 0:01:08]} 46. Kf5 {[%emt 0:00:20]} g6+ {[%emt 0:02:29]} 47. Kg5 {[%emt 0:00:51]} Qxg2+ {[%emt 0:01:07]} 48. Kh6 {[%emt 0:00:30]} Qxb2 {[%emt 0:00:58]} 49. Qe7 {[%emt 0:00:31]} Qh2+ {[%emt 0:00:26]} 50. Kg5 {[%emt 0:00:05]} Qh5+ {[%emt 0:00:05]} 0-1

[Event "Paul Keres Memorial-U20 Girls 2020"]
[Site "Parnu"]
[Date "2020.08.01"]
[Round "7.1"]
[White "Olde, Grete"]
[Black "Olde, Margareth"]
[Result "0-1"]
[ECO "B23"]
[WhiteElo "1968"]
[BlackElo "2201"]
[Annotator "ChessBase"]
[PlyCount "72"]
[EventDate "2020.07.27"]
[EventType "tourn"]
[EventCountry "EST"]
[TimeControl "5400+30"]

1. e4 {[%emt 0:00:00]} c5 {[%emt 0:00:00]} 2. Nc3 {[%emt 0:03:02]} a6 {[%emt 0:00:00]} 3. g3 {[%emt 0:00:10]} b5 {[%emt 0:00:00]} 4. Bg2 {[%emt 0:00:11]} Bb7 {[%emt 0:00:00]} 5. d3 {[%emt 0:00:19]} e6 {[%emt 0:00:05]} 6. f4 {[%emt 0:00:26]} d5 {[%emt 0:00:09]} 7. e5 {[%emt 0:01:04]} Ne7 {[%emt 0:00:11]} 8. Nf3 {[%emt 0:00:57]} Nf5 {[%emt 0:00:14]} 9. O-O {[%emt 0:01:45]} h5 {[%emt 0:00:06]} 10. Bh3 {[%emt 0:07:31]} Nc6 {[%emt 0:05:44]} 11. Ne2 {[%emt 0:07:59]} Be7 {[%emt 0:05:09]} 12. d4 {[%emt 0:05:44]} Nfxd4 {[%emt 0:06:26]} 13. Nexd4 {[%emt 0:03:27]} Nxd4 {[%emt 0:05:12]} 14. Nxd4 {[%emt 0:01:01]} cxd4 {[%emt 0:00:03]} 15. f5 {[%emt 0:05:00]} exf5 {[%emt 0:06:56]} 16. Rxf5 {[%emt 0:05:07]} g6 {[%emt 0:07:57]} 17. Rf2 {[%emt 0:05:36]} Bc8 {[%emt 0:05:43]} 18. e6 {[%emt 0:04:47]} Bxe6 {[%emt 0:05:08]} 19. Bxe6 {[%emt 0:04:22]} fxe6 {[%emt 0:00:07]} 20. Qxd4 {[%emt 0:00:26]} Rg8 {[%emt 0:00:42]} 21. Bh6 {[%emt 0:03:56]} Rc8 {[%emt 0:06:08]} 22. Qf4 {[%emt 0:04:19]} Kd7 {[%emt 0:00:47]} 23. Re2 {[%emt 0:02:07]} g5 {[%emt 0:10:10]} 24. Qf7 {[%emt 0:02:45]} Rc6 {[%emt 0:14:38]} 25. Bg7 {[%emt 0:14:03]} Qe8 {[%emt 0:00:00]} 26. Rf1 {[%emt 0:01:54]} Qxf7 {[%emt 0:00:00]} 27. Rxf7 {[%emt 0:00:05]} Ke8 {[%emt 0:00:00]} 28. Ref2 {[%emt 0:00:51]} Bc5 {[%emt 0:00:00]} 29. Bc3 {[%emt 0:00:55]} Bxf2+ {[%emt 0:00:00]} 30. Rxf2 {[%emt 0:00:08]} Rf8 {[%emt 0:00:00]} 31. Re2 {[%emt 0:00:22]} Kd7 {[%emt 0:00:00]} 32. Kg2 {[%emt 0:00:20]} Rc4 {[%emt 0:00:00]} 33. Bg7 {[%emt 0:00:22]} Rf7 {[%emt 0:00:00]} 34. Bh8 {[%emt 0:00:24]} h4 {[%emt 0:00:00]} 35. c3 {[%emt 0:00:24]} h3+ {[%emt 0:00:00]} 36. Kg1 {[%emt 0:00:19]} Re4 {[%emt 0:00:00]} 0-1

[Event "Paul Keres Memorial-U20 Girls 2020"]
[Site "Parnu"]
[Date "2020.08.01"]
[Round "7.2"]
[White "Tonso, Liina"]
[Black "Narva, Mai"]
[Result "1/2-1/2"]
[ECO "D02"]
[WhiteElo "1862"]
[BlackElo "2333"]
[Annotator "ChessBase"]
[PlyCount "150"]
[EventDate "2020.07.27"]
[EventType "tourn"]
[EventCountry "EST"]
[TimeControl "5400+30"]

1. d4 {[%emt 0:00:00]} Nf6 {[%emt 0:00:00]} 2. Nf3 {[%emt 0:00:00]} e6 {[%emt 0:00:00]} 3. Bf4 {[%emt 0:00:27]} b6 {[%emt 0:00:56]} 4. e3 {[%emt 0:02:23]} Bb7 {[%emt 0:00:19]} 5. Bd3 {[%emt 0:02:16]} Be7 {[%emt 0:00:36]} 6. h3 {[%emt 0:01:27]} O-O {[%emt 0:00:45]} 7. Nbd2 {[%emt 0:01:46]} c5 {[%emt 0:01:28]} 8. c3 {[%emt 0:03:14]} d5 {[%emt 0:03:26]} 9. O-O {[%emt 0:01:02]} Nc6 {[%emt 0:03:37]} 10. Qe2 {[%emt 0:04:17]} Bd6 {[%emt 0:04:52]} 11. Ne5 {[%emt 0:13:40]} Qc7 {[%emt 0:05:04]} 12. Ndf3 {[%emt 0:05:11]} Ne4 {[%emt 0:15:06]} 13. Nxc6 {[%emt 0:04:24]} Bxc6 {[%emt 0:02:34]} 14. Bxd6 {[%emt 0:05:02]} Qxd6 {[%emt 0:00:37]} 15. a4 {[%emt 0:02:42]} a5 {[%emt 0:03:54]} 16. Ne5 {[%emt 0:06:07]} Bb7 {[%emt 0:01:10]} 17. Rfd1 {[%emt 0:01:56]} f6 {[%emt 0:02:41]} 18. Nf3 {[%emt 0:01:38]} Qc7 {[%emt 0:05:29]} 19. c4 {[%emt 0:07:30]} Rac8 {[%emt 0:08:51]} 20. Rac1 {[%emt 0:02:37]} Qe7 {[%emt 0:03:45]} 21. b3 {[%emt 0:04:40]} Rfd8 {[%emt 0:01:34]} 22. Qb2 {[%emt 0:03:04]} Kh8 {[%emt 0:02:36]} 23. Nd2 {[%emt 0:06:28]} cxd4 {[%emt 0:09:41]} 24. exd4 {[%emt 0:00:36]} Ng5 {[%emt 0:02:43]} 25. Nf1 {[%emt 0:01:57]} Qd6 {[%emt 0:03:07]} 26. Be2 {[%emt 0:01:45]} Qc6 {[%emt 0:05:48]} 27. Ne3 {[%emt 0:02:03]} dxc4 {[%emt 0:01:09]} 28. Rxc4 {[%emt 0:01:48]} Qe4 {[%emt 0:00:38]} 29. d5 {[%emt 0:04:06]} Qg6 {[%emt 0:08:44]} 30. Kh2 {[%emt 0:01:32]} exd5 {[%emt 0:00:47]} 31. Rxc8 {[%emt 0:01:39]} Rxc8 {[%emt 0:00:09]} 32. Nxd5 {[%emt 0:00:37]} Re8 {[%emt 0:02:42]} 33. Bb5 {[%emt 0:01:03]} Rf8 {[%emt 0:01:06]} 34. Qd4 {[%emt 0:01:07]} Ne6 {[%emt 0:00:30]} 35. Qe3 {[%emt 0:02:02]} f5 {[%emt 0:00:28]} 36. Qg3 {[%emt 0:01:36]} Qxg3+ {[%emt 0:00:34]} 37. Kxg3 {[%emt 0:00:04]} Rd8 {[%emt 0:00:28]} 38. Bc4 {[%emt 0:00:53]} f4+ {[%emt 0:00:31]} 39. Kf3 {[%emt 0:00:58]} Re8 {[%emt 0:00:30]} 40. Kg4 {[%emt 0:01:36]} Rd8 {[%emt 0:00:30]} 41. Re1 {[%emt 0:01:03]} Bc8 {[%emt 0:00:30]} 42. Nxb6 {[%emt 0:00:31]} Nc5+ {[%emt 0:00:28]} 43. Nxc8 {[%emt 0:00:11]} Rxc8 {[%emt 0:00:05]} 44. Kxf4 {[%emt 0:00:24]} g6 {[%emt 0:00:55]} 45. Re7 {[%emt 0:00:45]} Nxa4 {[%emt 0:00:29]} 46. Be6 {[%emt 0:01:06]} Rf8+ {[%emt 0:00:13]} 47. Rf7 {[%emt 0:00:06]} Rxf7+ {[%emt 0:00:09]} 48. Bxf7 {[%emt 0:00:04]} Nc3 {[%emt 0:00:54]} 49. Be8 {[%emt 0:00:39]} Kg7 {[%emt 0:00:24]} 50. Bc6 {[%emt 0:00:35]} Kf6 {[%emt 0:00:12]} 51. Ke3 {[%emt 0:00:12]} Ke5 {[%emt 0:00:18]} 52. Kd3 {[%emt 0:01:09]} Nd1 {[%emt 0:00:25]} 53. Kc4 {[%emt 0:00:51]} Nxf2 {[%emt 0:00:48]} 54. Kb5 {[%emt 0:00:11]} Kd6 {[%emt 0:00:53]} 55. Bf3 {[%emt 0:00:26]} Nd3 {[%emt 0:00:33]} 56. Kxa5 {[%emt 0:00:54]} Kc5 {[%emt 0:00:13]} 57. Be2 {[%emt 0:00:55]} Nb4 {[%emt 0:00:15]} 58. Ka4 {[%emt 0:00:25]} g5 {[%emt 0:01:08]} 59. Ka3 {[%emt 0:00:38]} h6 {[%emt 0:00:15]} 60. Bf3 {[%emt 0:00:32]} Nd3 {[%emt 0:00:18]} 61. Be4 {[%emt 0:00:29]} Nb4 {[%emt 0:00:14]} 62. Kb2 {[%emt 0:00:43]} Kd4 {[%emt 0:00:23]} 63. Bf3 {[%emt 0:00:23]} Kd3 {[%emt 0:00:34]} 64. Bb7 {[%emt 0:00:37]} Kd4 {[%emt 0:00:12]} 65. Bf3 {[%emt 0:00:45]} Kd3 {[%emt 0:00:08]} 66. Bg4 {[%emt 0:00:23]} Kd4 {[%emt 0:00:26]} 67. Be6 {[%emt 0:00:26]} Nd3+ {[%emt 0:01:09]} 68. Ka3 {[%emt 0:00:22]} Nf4 {[%emt 0:00:23]} 69. Bg4 {[%emt 0:00:31]} Nxg2 {[%emt 0:00:23]} 70. b4 {[%emt 0:00:19]} Nf4 {[%emt 0:01:34]} 71. Ka4 {[%emt 0:00:21]} h5 {[%emt 0:00:39]} 72. Bf3 {[%emt 0:00:24]} Nxh3 {[%emt 0:00:29]} 73. Bxh5 {[%emt 0:00:23]} Nf4 {[%emt 0:00:15]} 74. Bg4 {[%emt 0:00:23]} Nd5 {[%emt 0:00:14]} 75. b5 {[%emt 0:00:12]} Nc3+ {[%emt 0:00:07]} 1/2-1/2